Workbook

Sheet Component calculations
A1: Sr. # | B1: Component | C1: Numbers | D1: Type(s) of failure | E1: Leak pressure (psig) | F1: Leak temperature (K) | G1: Area (in2) | H1: Diameter squared (in^2) | I1: Flow density (lb/ft3) | J1: Flow rate (lb/hr) | K1: Flow rate SCFM (R') | L1: Flow rate for further calcs (R') scfm | M1: Total ventilation rate (Q) (cfm) | N1: Oxygen concentration - perfect mixing, fan blowing fresh air in, at steady state (%) | O1: Fatality factor (FFvent,i) | P1: FFi [higher filter] | Q1: Probability of failure/hr (Pi) | R1: Pvent,i | S1: Pno_vent,i | T1: ODH Fatality Rate with ventilation FR (1/hr) | U1: ODH Fatality rate with no ventilation [FR] (1/hr)
A2: 1 | B2: ODH fan | C2: 1 | D2: (i) Failure to start on signal (interlock). | E2: _ | F2: _ | G2: _ | H2: _ | I2: _
C3: 1 | D3: (ii) Start on demand but fails while running. | E3: _ | F3: _ | G3: _ | H3: _ | I3: _
A4: 2 | B4: ODH fan interlock | C4: 1 | D4: (i) Failure on demand | E4: _ | F4: _ | G4: _ | H4: _ | I4: _
A5: 3 | B5: Cryogenic line C NPS ½” Sch 10 | C5: 3 | D5: (i) Small leak, 10mm2. | E5: 36.75 | F5: 5 | G5: 0.0155 | H5: =G5*4/PI() -> 0.01973521294 | I5: =[1]!hecalc(3,0,1,((E5+14.7)*101325/14.7),2,F5,1)/16.0185 -> 7.588602201 | J5: =1891*H5*1*SQRT(E5*I5) -> 623.2221943 | K5: =((J5/I5)/60)*((E5+15)/15)*(300/F5) -> 283.3349955 | L5: =IF(K5>'side work'!$I$11,'side work'!$I$11,K5) -> 283.3349955 | M5: 4000 | N5: =0.21*M5*100/(M5+L5) -> 19.61088733 | O5: =10^(6.5-0.76*N5) -> 3.942081764e-09 | P5: =IF(O5>1,1,O5) -> 3.942081764e-09 | Q5: 5e-07 | R5: =1-S5 -> 0.9968350216 | S5: =Prob.!$E$12 -> 0.0031649784 | T5: =R5*C5*Q5*P5 -> 5.894407741e-15 | U5: =1*Q5*S5*C5 -> 4.7474676e-09
C6: 15 | D6: (ii) Small leak weld failure | E6: 36.75 | F6: 5 | G6: 0.0155 | H6: =G6*4/PI() -> 0.01973521294 | I6: =[1]!hecalc(3,0,1,((E6+14.7)*101325/14.7),2,F6,1)/16.0185 -> 7.588602201 | J6: =1891*H6*1*SQRT(E6*I6) -> 623.2221943 | K6: =((J6/I6)/60)*((E6+15)/15)*(300/F6) -> 283.3349955 | L6: =IF(K6>'side work'!$I$11,'side work'!$I$11,K6) -> 283.3349955 | M6: =M5 -> 4000 | N6: =0.21*M6*100/(M6+L6) -> 19.61088733 | O6: =10^(6.5-0.76*N6) -> 3.942081764e-09 | P6: =IF(O6>1,1,O6) -> 3.942081764e-09 | Q6: =0.00000000002*(0.84/0.083) -> 2.024096386e-10 | R6: =1-S6 -> 0.9968350216 | S6: =Prob.!$E$12 -> 0.0031649784 | T6: =R6*C6*Q6*P6 -> 1.19308494e-17 | U6: =1*Q6*S6*C6 -> 9.60933201e-12
C7: 3 | D7: (iii) Rupture. | E7: 275 | F7: 5 | G7: 0.3568 | H7: =G7*4/PI() -> 0.4542918696 | I7: =[1]!hecalc(3,0,1,((E7+14.7)*101325/14.7),2,F7,1)/16.0185 -> 9.915828626 | J7: =1891*H7*1*SQRT(E7*I7) -> 44859.80137 | K7: 87465.15554 | L7: =IF(K7>'side work'!$I$11,'side work'!$I$11,K7) -> 1546.574237 | M7: =M6 -> 4000 | N7: =0.21*M7*100/(M7+L7) -> 15.14448314 | O7: =10^(6.5-0.76*N7) -> 9.776711867e-06 | P7: 9.776711867e-06 | Q7: 2e-08 | R7: 0.9992 | S7: =$S$5 -> 0.0031649784 | T7: =R7*C7*Q7*P7 -> 5.861334298e-13 | U7: 1.89898704e-10
A8: 4 | B8: Cryogenic line D NPS ½” Sch 10 | C8: 4 | D8: (i) Small leak, 10mm2. | E8: 36.75 | F8: 8 | G8: 0.0155 | H8: 0.01973521294 | I8: =[1]!hecalc(3,0,1,((E8+14.7)*101325/14.7),2,F8,1)/16.0185 -> 1.648309676 | J8: 290.4567151 | K8: 379.9633655 | L8: =IF(K8>'side work'!$I$11,'side work'!$I$11,K8) -> 379.9633655 | M8: 4000 | N8: 19.1782426 | O8: 8.404959485e-09 | P8: 8.404959485e-09 | Q8: 5e-07 | R8: 0.9992 | S8: =$S$5 -> 0.0031649784 | T8: 1.679647103e-14 | U8: 6.3299568e-09
C9: 20 | D9: (ii) Small leak weld failure | E9: 36.75 | F9: 8 | G9: 0.0155 | H9: =G9*4/PI() -> 0.01973521294 | I9: =[1]!hecalc(3,0,1,((E9+14.7)*101325/14.7),2,F9,1)/16.0185 -> 1.648309676 | J9: =1891*H9*1*SQRT(E9*I9) -> 290.4567151 | K9: 379.9633655 | L9: =IF(K9>'side work'!$I$11,'side work'!$I$11,K9) -> 379.9633655 | M9: 4000 | N9: =0.21*M9*100/(M9+L9) -> 19.1782426 | O9: =10^(6.5-0.76*N9) -> 8.404959485e-09 | P9: =IF(O9>1,1,O9) -> 8.404959485e-09 | Q9: =0.00000000002*(0.84/0.083) -> 2.024096386e-10 | R9: 0.9992 | S9: =$S$5 -> 0.0031649784 | T9: 3.399767631e-17 | U9: 1.281244268e-11
C10: 4 | D10: (iii) Rupture. | E10: 275 | F10: 8 | G10: 0.3568 | H10: 0.4542918696 | I10: =[1]!hecalc(3,0,1,((E10+14.7)*101325/14.7),2,F10,1)/16.0185 -> 8.243683176 | J10: 40902.84217 | K10: 59954.10857 | L10: =IF(K10>'side work'!$I$11,'side work'!$I$11,K10) -> 1546.574237 | M10: 4000 | N10: 15.14448314 | O10: 9.776711867e-06 | P10: 9.776711867e-06 | Q10: 2e-08 | R10: 0.9992 | S10: =$S$5 -> 0.0031649784 | T10: 7.815112398e-13 | U10: 2.53198272e-10
A11: 5 | B11: Cryogenic line E NPS 3/4” Sch 10 | C11: 4 | D11: (i) Small leak, 10mm2. | E11: 162 | F11: 40 | G11: 0.0155 | H11: 0.01973521294 | I11: =[1]!hecalc(3,0,1,((E11+14.7)*101325/14.7),2,F11,1)/16.0185 -> 0.8863600876 | J11: 447.1939802 | K11: 744.1796287 | L11: =IF(K11>'side work'!$I$11,'side work'!$I$11,K11) -> 744.1796287 | M11: 4000 | N11: 17.70590631 | O11: 1.105378996e-07 | P11: 1.105378996e-07 | Q11: 5e-07 | R11: 0.9992 | S11: 0.0031649784 | T11: 2.208989386e-13 | U11: 6.3299568e-09
C12: 20 | D12: (ii) Small leak weld failure | E12: 162 | F12: 40 | G12: 0.0155 | H12: =G12*4/PI() -> 0.01973521294 | I12: =[1]!hecalc(3,0,1,((E12+14.7)*101325/14.7),2,F12,1)/16.0185 -> 0.8863600876 | J12: =1891*H12*1*SQRT(E12*I12) -> 447.1939802 | K12: 744.1796287 | L12: =IF(K12>'side work'!$I$11,'side work'!$I$11,K12) -> 744.1796287 | M12: 4000 | N12: =0.21*M12*100/(M12+L12) -> 17.70590631 | O12: =10^(6.5-0.76*N12) -> 1.105378996e-07 | P12: =IF(O12>1,1,O12) -> 1.105378996e-07 | Q12: =0.00000000002*(1.05/0.083) -> 2.530120482e-10 | R12: 0.9992 | S12: 0.0031649784 | T12: =R12*C12*Q12*P12 -> 5.589009289e-16 | U12: 1.601555335e-11
C13: 4 | D13: (iii) Rupture. | E13: 275 | F13: 40 | G13: 0.6137 | H13: 0.7813871086 | I13: =[1]!hecalc(3,0,1,((E13+14.7)*101325/14.7),2,F13,1)/16.0185 -> 1.423481557 | J13: 29234.79414 | K13: 49632.36239 | L13: =IF(K13>'side work'!$I$11,'side work'!$I$11,K13) -> 1546.574237 | M13: 4000 | N13: 15.14448314 | O13: 9.776711867e-06 | P13: 9.776711867e-06 | Q13: 2e-08 | R13: 0.9992 | S13: 0.0031649784 | T13: 7.815112398e-13 | U13: 2.53198272e-10
A14: 6 | B14: Cryogenic line F NPS 1” Sch 10 | C14: 2 | D14: (i) Small leak, 10mm2. | E14: 162 | F14: 80 | G14: 0.0155 | H14: 0.01973521294 | I14: =[1]!hecalc(3,0,1,((E14+14.7)*101325/14.7),2,F14,1)/16.0185 -> 0.447830201 | J14: 317.8685363 | K14: 523.4752927 | L14: =IF(K14>'side work'!$I$11,'side work'!$I$11,K14) -> 523.4752927 | M14: 4000 | N14: 18.56979304 | O14: 2.437571091e-08 | P14: 2.437571091e-08 | Q14: 5e-07 | R14: 0.9992 | S14: 0.0031649784 | T14: 2.435621035e-14 | U14: 3.1649784e-09
C15: 20 | D15: (ii) Small leak weld failure | E15: 162 | F15: 80 | G15: 0.0155 | H15: =G15*4/PI() -> 0.01973521294 | I15: =[1]!hecalc(3,0,1,((E15+14.7)*101325/14.7),2,F15,1)/16.0185 -> 0.447830201 | J15: =1891*H15*1*SQRT(E15*I15) -> 317.8685363 | K15: 523.4752927 | L15: =IF(K15>'side work'!$I$11,'side work'!$I$11,K15) -> 523.4752927 | M15: 4000 | N15: =0.21*M15*100/(M15+L15) -> 18.56979304 | O15: =10^(6.5-0.76*N15) -> 2.437571091e-08 | P15: =IF(O15>1,1,O15) -> 2.437571091e-08 | Q15: =0.00000000002*(1.315/0.109) -> 2.412844037e-10 | R15: 0.9992 | S15: 0.0031649784 | T15: 1.175354738e-16 | U15: 1.527319852e-11
C16: 2 | D16: (iii) Rupture. | E16: 175 | F16: 80 | G16: 0.9452 | H16: 1.203466018 | I16: =[1]!hecalc(3,0,1,((E16+14.7)*101325/14.7),2,F16,1)/16.0185 -> 0.4800285623 | J16: 20858.25269 | K16: 34399.58509 | L16: =IF(K16>'side work'!$I$11,'side work'!$I$11,K16) -> 1546.574237 | M16: 4000 | N16: 15.14448314 | O16: 9.776711867e-06 | P16: 9.776711867e-06 | Q16: 2e-08 | R16: 0.9992 | S16: 0.0031649784 | T16: 3.907556199e-13 | U16: 1.26599136e-10
A17: 7 | B17: Cryogenic line F NPS 3/4” Sch 10 | C17: 3 | D17: (i) Small leak, 10mm2. | E17: 162 | F17: 80 | G17: 0.0155 | H17: 0.01973521294 | I17: =[1]!hecalc(3,0,1,((E17+14.7)*101325/14.7),2,F17,1)/16.0185 -> 0.447830201 | J17: 317.8685363 | K17: 523.4752927 | L17: =IF(K17>'side work'!$I$11,'side work'!$I$11,K17) -> 523.4752927 | M17: 4000 | N17: 18.56979304 | O17: 2.437571091e-08 | P17: 2.437571091e-08 | Q17: 5e-07 | R17: 0.9992 | S17: 0.0031649784 | T17: 3.653431552e-14 | U17: =1*Q17*S17*C17 -> 4.7474676e-09
C18: 20 | D18: (ii) Small leak weld failure | E18: 162 | F18: 80 | G18: 0.0155 | H18: =G18*4/PI() -> 0.01973521294 | I18: =[1]!hecalc(3,0,1,((E18+14.7)*101325/14.7),2,F18,1)/16.0185 -> 0.447830201 | J18: =1891*H18*1*SQRT(E18*I18) -> 317.8685363 | K18: 523.4752927 | L18: =IF(K18>'side work'!$I$11,'side work'!$I$11,K18) -> 523.4752927 | M18: 4000 | N18: =0.21*M18*100/(M18+L18) -> 18.56979304 | O18: =10^(6.5-0.76*N18) -> 2.437571091e-08 | P18: =IF(O18>1,1,O18) -> 2.437571091e-08 | Q18: =0.00000000002*(1.05/0.083) -> 2.530120482e-10 | R18: 0.9992 | S18: 0.0031649784 | T18: 1.232482933e-16 | U18: 1.601555335e-11
C19: 3 | D19: (iii) Rupture. | E19: 175 | F19: 80 | G19: 0.6137 | H19: 0.7813871086 | I19: =[1]!hecalc(3,0,1,((E19+14.7)*101325/14.7),2,F19,1)/16.0185 -> 0.4800285623 | J19: 13542.85831 | K19: 22334.98241 | L19: =IF(K19>'side work'!$I$11,'side work'!$I$11,K19) -> 1546.574237 | M19: 4000 | N19: 15.14448314 | O19: 9.776711867e-06 | P19: 9.776711867e-06 | Q19: 2e-08 | R19: 0.9992 | S19: 0.0031649784 | T19: 5.861334298e-13 | U19: 1.89898704e-10
A20: 8 | B20: Cryogenic line B NPS 4” Sch 10 | C20: 3 | D20: (i) Small leak, 10mm2. | E20: 10 | F20: 4.5 | G20: 0.0155 | H20: 0.01973521294 | I20: =[1]!hecalc(3,0,1,((E20+14.7)*101325/14.7),2,F20,1)/16.0185 -> 7.631928014 | J20: 326.0246808 | K20: 79.1083731 | L20: =IF(K20>'side work'!$I$11,'side work'!$I$11,K20) -> 79.1083731 | M20: 4000 | N20: 20.59273555 | O20: 7.071653672e-10 | P20: 7.071653672e-10 | Q20: 5e-07 | R20: 0.9992 | S20: 0.0031649784 | T20: 1.059899452e-15 | U20: 4.7474676e-09
C21: 15 | D21: (ii) Small leak weld failure | E21: 10 | F21: 4.5 | G21: 0.0155 | H21: =G21*4/PI() -> 0.01973521294 | I21: =[1]!hecalc(3,0,1,((E21+14.7)*101325/14.7),2,F21,1)/16.0185 -> 7.631928014 | J21: =1891*H21*1*SQRT(E21*I21) -> 326.0246808 | K21: 79.1083731 | L21: =IF(K21>'side work'!$I$11,'side work'!$I$11,K21) -> 79.1083731 | M21: 4000 | N21: =0.21*M21*100/(M21+L21) -> 20.59273555 | O21: =10^(6.5-0.76*N21) -> 7.071653672e-10 | P21: =IF(O21>1,1,O21) -> 7.071653672e-10 | Q21: =0.00000000002*(4.5/0.12) -> 7.5e-10 | R21: 0.9992 | S21: 0.0031649784 | T21: 7.949245892e-18 | U21: 3.5606007e-11
C22: 3 | D22: (iii) Rupture. | E22: 40 | F22: 5 | G22: 14.25 | H22: 18.14366351 | I22: =[1]!hecalc(3,0,1,((E22+14.7)*101325/14.7),2,F22,1)/16.0185 -> 7.674985144 | J22: 601153.3606 | K22: 287196.5153 | L22: =IF(K22>'side work'!$I$11,'side work'!$I$11,K22) -> 1546.574237 | M22: 4000 | N22: 15.14448314 | O22: 9.776711867e-06 | P22: 9.776711867e-06 | Q22: 5e-10 | R22: 0.9992 | S22: 0.0031649784 | T22: 1.465333575e-14 | U22: 4.7474676e-12
A23: 9 | B23: Cryogenic line B NPS 2½” Sch 10 | C23: 2 | D23: (i) Small leak, 10mm2. | E23: 10 | F23: 4.5 | G23: 0.0155 | H23: 0.01973521294 | I23: =[1]!hecalc(3,0,1,((E23+14.7)*101325/14.7),2,F23,1)/16.0185 -> 7.631928014 | J23: 326.0246808 | K23: 79.1083731 | L23: =IF(K23>'side work'!$I$11,'side work'!$I$11,K23) -> 79.1083731 | M23: 4000 | N23: 20.59273555 | O23: 7.071653672e-10 | P23: 7.071653672e-10 | Q23: 5e-07 | R23: 0.9992 | S23: 0.0031649784 | T23: 7.065996349e-16 | U23: 3.1649784e-09
C24: 15 | D24: (ii) Small leak weld failure | E24: 10 | F24: 4.5 | G24: 0.0155 | H24: =G24*4/PI() -> 0.01973521294 | I24: =[1]!hecalc(3,0,1,((E24+14.7)*101325/14.7),2,F24,1)/16.0185 -> 7.631928014 | J24: =1891*H24*1*SQRT(E24*I24) -> 326.0246808 | K24: 79.1083731 | L24: =IF(K24>'side work'!$I$11,'side work'!$I$11,K24) -> 79.1083731 | M24: 4000 | N24: =0.21*M24*100/(M24+L24) -> 20.59273555 | O24: =10^(6.5-0.76*N24) -> 7.071653672e-10 | P24: =IF(O24>1,1,O24) -> 7.071653672e-10 | Q24: =0.00000000002*(2.375/0.109) -> 4.357798165e-10 | R24: 0.9992 | S24: 0.0031649784 | T24: 4.618827888e-18 | U24: 2.06885056e-11
C25: 2 | D25: (iii) Rupture. | E25: 40 | F25: 5 | G25: 5.453 | H25: 6.942975237 | I25: =[1]!hecalc(3,0,1,((E25+14.7)*101325/14.7),2,F25,1)/16.0185 -> 7.674985144 | J25: 230041.3526 | K25: 109900.5332 | L25: =IF(K25>'side work'!$I$11,'side work'!$I$11,K25) -> 1546.574237 | M25: 4000 | N25: 15.14448314 | O25: 9.776711867e-06 | P25: 9.776711867e-06 | Q25: 5e-10 | R25: 0.9992 | S25: 0.0031649784 | T25: 9.768890497e-15 | U25: 3.1649784e-12
A26: 10 | B26: Safety valve SV 610,611,612 613, 620 621, 622 623 (Line C, D) on bayonets | C26: 10 | D26: (iii) Rupture | E26: 275 | F26: 5 | G26: 0.132 | H26: 0.1680676199 | I26: =[1]!hecalc(3,0,1,((E26+14.7)*101325/14.7),2,F26,1)/16.0185 -> 9.915828626 | J26: 16596.11486 | K26: 32358.18535 | L26: =IF(K26>'side work'!$I$11,'side work'!$I$11,K26) -> 1546.574237 | M26: 4000 | N26: =0.21*M26*100/(M26+L26) -> 15.14448314 | O26: 9.776711867e-06 | P26: 9.776711867e-06 | Q26: 5e-10 | R26: 0.9992 | S26: 0.0031649784 | T26: 4.884445249e-14 | U26: 1.5824892e-11
A27: 11 | B27: Safety valve SV 614,615, 616 617, 624 625, 626, 627 (Line E, F) on bayonets | C27: 12 | D27: (iii) Rupture | E27: 275 | F27: 60 | G27: 0.132 | H27: 0.1680676199 | I27: =[1]!hecalc(3,0,1,((E27+14.7)*101325/14.7),2,F27,1)/16.0185 -> 0.9577744212 | J27: 5157.907422 | K27: 8676.324793 | L27: =IF(K27>'side work'!$I$11,'side work'!$I$11,K27) -> 1546.574237 | M27: 4000 | N27: 15.14448314 | O27: 9.776711867e-06 | P27: 9.776711867e-06 | Q27: 5e-10 | R27: 0.9992 | S27: 0.0031649784 | T27: 5.861334298e-14 | U27: 1.89898704e-11
A28: 12 | B28: Safety valve SV 710, 711 (Line F) on bayonets (HWR) | C28: 2 | D28: (iii) Rupture | E28: 275 | F28: 80 | G28: 0.132 | H28: 0.1680676199 | I28: =[1]!hecalc(3,0,1,((E28+14.7)*101325/14.7),2,F28,1)/16.0185 -> 0.7244008093 | J28: =1891*H28*1*SQRT(E28*I28) -> 4485.712023 | K28: 7482.37066 | L28: =IF(K28>'side work'!$I$11,'side work'!$I$11,K28) -> 1546.574237 | M28: 4000 | N28: 15.14448314 | O28: 9.776711867e-06 | P28: 9.776711867e-06 | Q28: 5e-10 | R28: 0.9992 | S28: 0.0031649784 | T28: 9.768890497e-15 | U28: 3.1649784e-12
A29: 13 | B29: Safety valve SV 608, 609, 618, 619 (Line B) at valve box | C29: 4 | D29: (i) External leak | E29: 10 | F29: 4.5 | G29: 0.05 | H29: 0.06366197724 | I29: =[1]!hecalc(3,0,1,((E29+14.7)*101325/14.7),2,F29,1)/16.0185 -> 7.631928014 | J29: 1051.692519 | K29: 255.1883003 | L29: =IF(K29>'side work'!$I$11,'side work'!$I$11,K29) -> 255.1883003 | M29: 4000 | N29: 19.74060701 | O29: 3.141511622e-09 | P29: 3.141511622e-09 | Q29: 1e-08 | R29: 0.9992 | S29: 0.0031649784 | T29: 1.255599365e-16 | U29: 1.26599136e-10
C30: 4 | D30: (ii) Rupture | E30: 40 | F30: 5 | G30: 0.6137 | H30: 0.7813871086 | I30: =[1]!hecalc(3,0,1,((E30+14.7)*101325/14.7),2,F30,1)/16.0185 -> 7.674985144 | J30: 25889.6714 | K30: 12368.59659 | L30: =IF(K30>'side work'!$I$11,'side work'!$I$11,K30) -> 1546.574237 | M30: 4000 | N30: 15.14448314 | O30: 9.776711867e-06 | P30: 9.776711867e-06 | Q30: 5e-10 | R30: 0.9992 | S30: 0.0031649784 | T30: 1.953778099e-14 | U30: 6.3299568e-12
A31: 14 | B31: Safety valve SV 606, 611 (Line C, D) at valve box | C31: 4 | D31: (i) External leak | E31: 36.75 | F31: 6 | G31: 0.05 | H31: 0.06366197724 | I31: =[1]!hecalc(3,0,1,((E31+14.7)*101325/14.7),2,F31,1)/16.0185 -> 3.906882346 | J31: 1442.498898 | K31: 1061.507351 | L31: =IF(K31>'side work'!$I$11,'side work'!$I$11,K31) -> 1061.507351 | M31: 4000 | N31: 16.59584669 | O31: 7.71181351e-07 | P31: 7.71181351e-07 | Q31: 1e-08 | R31: 0.9992 | S31: 0.0031649784 | T31: 3.082257624e-14 | U31: 1.26599136e-10
C32: 4 | D32: (ii) Rupture | E32: 275 | F32: 6 | G32: 0.6137 | H32: 0.7813871086 | I32: =[1]!hecalc(3,0,1,((E32+14.7)*101325/14.7),2,F32,1)/16.0185 -> 9.441571114 | J32: 75291.55244 | K32: 128477.618 | L32: =IF(K32>'side work'!$I$11,'side work'!$I$11,K32) -> 1546.574237 | M32: 4000 | N32: 15.14448314 | O32: 9.776711867e-06 | P32: 9.776711867e-06 | Q32: 5e-10 | R32: 0.9992 | S32: 0.0031649784 | T32: 1.953778099e-14 | U32: 6.3299568e-12
A33: 15 | B33: Safety valve SV 608, 613 (Line E, F) at valve box | C33: 4 | D33: (i) External leak | E33: 162 | F33: 60 | G33: 0.05 | H33: 0.06366197724 | I33: =[1]!hecalc(3,0,1,((E33+14.7)*101325/14.7),2,F33,1)/16.0185 -> 0.5940292601 | J33: 1180.954262 | K33: 1954.906549 | L33: =IF(K33>'side work'!$I$11,'side work'!$I$11,K33) -> 1546.574237 | M33: 4000 | N33: 15.14448314 | O33: 9.776711867e-06 | P33: 9.776711867e-06 | Q33: 1e-08 | R33: 0.9992 | S33: 0.0031649784 | T33: 3.907556199e-13 | U33: 1.26599136e-10
C34: 4 | D34: (ii) Rupture | E34: 275 | F34: 60 | G34: 0.6137 | H34: 0.7813871086 | I34: =[1]!hecalc(3,0,1,((E34+14.7)*101325/14.7),2,F34,1)/16.0185 -> 0.9577744212 | J34: 23980.362 | K34: 40338.33731 | L34: =IF(K34>'side work'!$I$11,'side work'!$I$11,K34) -> 1546.574237 | M34: 4000 | N34: 15.14448314 | O34: 9.776711867e-06 | P34: 9.776711867e-06 | Q34: 5e-10 | R34: 0.9992 | S34: 0.0031649784 | T34: 1.953778099e-14 | U34: 6.3299568e-12
A35: 16 | B35: Bayonets (Line B) | C35: 2 | D35: (i) U-tube change (dia 3.09) small event | E35: 10 | F35: 4.5 | G35: 7.5 | H35: 9.549296586 | I35: =[1]!hecalc(3,0,1,((E35+14.7)*101325/14.7),2,F35,1)/16.0185 -> 7.631928014 | J35: =1891*H35*1*SQRT(E35*I35) -> 157753.8778 | K35: 38278.24505 | L35: =IF(K35>'side work'!$I$11,'side work'!$I$11,K35) -> 1546.574237 | M35: 4000 | N35: 15.14448314 | O35: 9.776711867e-06 | P35: 9.776711867e-06 | Q35: =0.03/168 -> 0.0001785714286 | R35: 0.9992 | S35: 0.0031649784 | T35: 3.488889463e-09 | U35: 1.130349429e-06
A36: 17 | B36: Bayonets (line C, D) | C36: 4 | D36: (i) U-tube change - small event | E36: 36.75 | F36: 6 | G36: 1.601 | H36: 2.038456511 | I36: =[1]!hecalc(3,0,1,((E36+14.7)*101325/14.7),2,F36,1)/16.0185 -> 3.906882346 | J36: 46188.81471 | K36: 33989.46539 | L36: =IF(K36>'side work'!$I$11,'side work'!$I$11,K36) -> 1546.574237 | M36: 4000 | N36: 15.14448314 | O36: 9.776711867e-06 | P36: 9.776711867e-06 | Q36: =0.03/168 -> 0.0001785714286 | R36: 0.9992 | S36: 0.0031649784 | T36: 6.977778927e-09 | U36: 2.260698857e-06
A37: 18 | B37: Bayonets (Line E, F) | C37: 5 | D37: (i) U-tube change - small event | E37: 162 | F37: 60 | G37: 1.601 | H37: 2.038456511 | I37: =[1]!hecalc(3,0,1,((E37+14.7)*101325/14.7),2,F37,1)/16.0185 -> 0.5940292601 | J37: 37814.15547 | K37: 62596.10771 | L37: =IF(K37>'side work'!$I$11,'side work'!$I$11,K37) -> 1546.574237 | M37: 4000 | N37: 15.14448314 | O37: 9.776711867e-06 | P37: 9.776711867e-06 | Q37: =0.03/168 -> 0.0001785714286 | R37: 0.9992 | S37: 0.0031649784 | T37: 8.722223658e-09 | U37: 2.825873571e-06
A38: 19 | B38: Manual valves on instrumentation | C38: 6 | D38: (i) External leak. | E38: 10 | F38: 4.5 | G38: 0.132 | H38: 0.1680676199 | I38: =[1]!hecalc(3,0,1,((E38+14.7)*101325/14.7),2,F38,1)/16.0185 -> 7.631928014 | J38: 2776.468249 | K38: 673.6971129 | L38: =IF(K38>'side work'!$I$11,'side work'!$I$11,K38) -> 673.6971129 | M38: 4000 | N38: 17.97292336 | O38: 6.927527352e-08 | P38: 6.927527352e-08 | Q38: 1e-08 | R38: 0.9992 | S38: 0.0031649784 | T38: 4.153191198e-15 | U38: 1.89898704e-10
C39: 6 | D39: (ii) Rupture. | E39: 40 | F39: 5 | G39: 0.132 | H39: 0.1680676199 | I39: =[1]!hecalc(3,0,1,((E39+14.7)*101325/14.7),2,F39,1)/16.0185 -> 7.674985144 | J39: 5568.578498 | K39: 2660.346668 | L39: =IF(K39>'side work'!$I$11,'side work'!$I$11,K39) -> 1546.574237 | M39: 4000 | N39: 15.14448314 | O39: 9.776711867e-06 | P39: 9.776711867e-06 | Q39: 5e-10 | R39: 0.9992 | S39: 0.0031649784 | T39: 2.930667149e-14 | U39: 9.4949352e-12
A40: 20 | B40: Cryogenic valves (Line B) Cooldown return+ other | C40: 4 | D40: (i) External leak. | E40: 10 | F40: 4.5 | G40: 0.0155 | H40: 0.01973521294 | I40: =[1]!hecalc(3,0,1,((E40+14.7)*101325/14.7),2,F40,1)/16.0185 -> 7.631928014 | J40: 326.0246808 | K40: 79.1083731 | L40: =IF(K40>'side work'!$I$11,'side work'!$I$11,K40) -> 79.1083731 | M40: 4000 | N40: 20.59273555 | O40: 7.071653672e-10 | P40: 7.071653672e-10 | Q40: 1e-08 | R40: 0.9992 | S40: 0.0031649784 | T40: 2.826398539e-17 | U40: 1.26599136e-10
C41: 4 | D41: (ii) Rupture. | E41: 40 | F41: 5 | G41: 0.6137 | H41: 0.7813871086 | I41: =[1]!hecalc(3,0,1,((E41+14.7)*101325/14.7),2,F41,1)/16.0185 -> 7.674985144 | J41: 25889.6714 | K41: 12368.59659 | L41: =IF(K41>'side work'!$I$11,'side work'!$I$11,K41) -> 1546.574237 | M41: 4000 | N41: 15.14448314 | O41: 9.776711867e-06 | P41: 9.776711867e-06 | Q41: 5e-10 | R41: 0.9992 | S41: 0.0031649784 | T41: 1.953778099e-14 | U41: 6.3299568e-12
A42: 21 | B42: Cryogenic valves (Line D) Cooldown return + other | C42: 6 | D42: (i) External leak. | E42: 36.75 | F42: 8 | G42: 0.0155 | H42: 0.01973521294 | I42: =[1]!hecalc(3,0,1,((E42+14.7)*101325/14.7),2,F42,1)/16.0185 -> 1.648309676 | J42: 290.4567151 | K42: 379.9633655 | L42: =IF(K42>'side work'!$I$11,'side work'!$I$11,K42) -> 379.9633655 | M42: 4000 | N42: 19.1782426 | O42: 8.404959485e-09 | P42: 8.404959485e-09 | Q42: 1e-08 | R42: 0.9992 | S42: 0.0031649784 | T42: 5.03894131e-16 | U42: 1.89898704e-10
C43: 6 | D43: (ii) Rupture. | E43: 275 | F43: 8 | G43: 0.6137 | H43: 0.7813871086 | I43: =[1]!hecalc(3,0,1,((E43+14.7)*101325/14.7),2,F43,1)/16.0185 -> 8.243683176 | J43: 70353.34708 | K43: 103121.7389 | L43: =IF(K43>'side work'!$I$11,'side work'!$I$11,K43) -> 1546.574237 | M43: 4000 | N43: 15.14448314 | O43: 9.776711867e-06 | P43: 9.776711867e-06 | Q43: 5e-10 | R43: 0.9992 | S43: 0.0031649784 | T43: 2.930667149e-14 | U43: 9.4949352e-12
A44: 22 | B44: Cryogenic valves (Line F) Cooldown return + other | C44: 5 | D44: (i) External leak. | E44: 162 | F44: 80 | G44: 0.0155 | H44: 0.01973521294 | I44: =[1]!hecalc(3,0,1,((E44+14.7)*101325/14.7),2,F44,1)/16.0185 -> 0.447830201 | J44: 317.8685363 | K44: 523.4752927 | L44: =IF(K44>'side work'!$I$11,'side work'!$I$11,K44) -> 523.4752927 | M44: 4000 | N44: 18.56979304 | O44: 2.437571091e-08 | P44: 2.437571091e-08 | Q44: 1e-08 | R44: 0.9992 | S44: 0.0031649784 | T44: 1.217810517e-15 | U44: 1.5824892e-10
C45: 5 | D45: (ii) Rupture. | E45: 275 | F45: 80 | G45: 0.6137 | H45: 0.7813871086 | I45: =[1]!hecalc(3,0,1,((E45+14.7)*101325/14.7),2,F45,1)/16.0185 -> 0.7244008093 | J45: 20855.16264 | K45: 34787.3551 | L45: =IF(K45>'side work'!$I$11,'side work'!$I$11,K45) -> 1546.574237 | M45: 4000 | N45: 15.14448314 | O45: 9.776711867e-06 | P45: 9.776711867e-06 | Q45: 5e-10 | R45: 0.9992 | S45: 0.0031649784 | T45: 2.442222624e-14 | U45: 7.912446e-12
A46: 23 | B46: Liquid helium bath in HWR | C46: 1 | D46: (i) Vacuum loss + pipe rupture | E46: 53 | F46: 6.9 | G46: _ | H46: _ | I46: =[1]!hecalc(3,0,1,((E46+14.7)*101325/14.7),2,F46,1)/16.0185 -> 3.491383585 | J46: =6.35*2.2046*3600/I46 -> 14434.72331 | K46: 13581.55401 | L46: =IF(K46>'side work'!$I$11,'side work'!$I$11,K46) -> 1546.574237 | M46: 4000 | N46: 15.14448314 | O46: 9.776711867e-06 | P46: 9.776711867e-06 | Q46: 1e-14 | R46: 0.9992 | S46: 0.0031649784 | T46: 9.768890497e-20 | U46: 3.1649784e-17
C47: 0 | D47: (ii) rupture disk initial | E47: 15 | F47: 6.9 | G47: _ | H47: _ | I47: =[1]!hecalc(3,0,1,((E47+14.7)*101325/14.7),2,F47,1)/16.0185 -> 1.067818484 | J47: 47196.36973 | K47: --- | L47: =IF(K47>'side work'!$I$11,'side work'!$I$11,K47) -> 1546.574237 | M47: 4000 | N47: ='side work'!B18 -> 19.07789353 | O47: =10^(6.5-0.76*N47) -> 1.001845876e-08 | P47: =IF(O47>1,1,O47) -> 1.001845876e-08 | Q47: 0.003 | R47: 0.9992 | S47: =$S$5 -> 0.0031649784 | T47: 0 | U47: 0
C48: 0 | D48: (iii) rupture disk after initial failure | E48: 15 | F48: 6.9 | G48: -- | H48: -- | I48: =[1]!hecalc(3,0,1,((E48+14.7)*101325/14.7),2,F48,1)/16.0185 -> 1.067818484 | J48: 47196.36973 | K48: 64056.33246 | L48: =IF(K48>'side work'!$I$11,'side work'!$I$11,K48) -> 1546.574237 | M48: 4000 | N48: =(N47/100)*M48*100/(M48+L48) -> 13.75832557 | O48: =10^(6.5-0.76*N48) -> 0.0001105789774 | P48: =IF(O48>1,1,O48) -> 0.0001105789774 | Q48: 0.003 | R48: 0.9992 | S48: =$S$5 -> 0.0031649784 | T48: 0 | U48: 0
A49: 24 | B49: Liquid helium bath in SSR1 | C49: 1 | D49: (i) Vacuum loss + pipe rupture | E49: 53 | F49: 6.9 | G49: _ | H49: _ | I49: =[1]!hecalc(3,0,1,((E49+14.7)*101325/14.7),2,F49,1)/16.0185 -> 3.491383585 | J49: =6.35*2.2046*3600/I49 -> 14434.72331 | K49: =((J49/I49)/60)*((E49+15)/15)*(300/F49) -> 13581.55401 | L49: =IF(K49>'side work'!$I$11,'side work'!$I$11,K49) -> 1546.574237 | M49: 4000 | N49: =0.21*M49*100/(M49+L49) -> 15.14448314 | O49: 9.776711867e-06 | P49: 9.776711867e-06 | Q49: 1e-14 | R49: 0.9992 | S49: 0.0031649784 | T49: =R49*C49*Q49*P49 -> 9.768890497e-20 | U49: =1*Q49*S49*C49 -> 3.1649784e-17
C50: 1 | D50: (ii) rupture disk + pipe rupture | E50: 15 | F50: 6.9 | G50: -- | H50: -- | I50: =[1]!hecalc(3,0,1,((E50+14.7)*101325/14.7),2,F50,1)/16.0185 -> 1.067818484 | J50: 47196.36973 | K50: 64056.33246 | L50: =IF(K50>'side work'!$I$11,'side work'!$I$11,K50) -> 1546.574237 | M50: 4000 | N50: =0.21*M50*100/(M50+L50) -> 15.14448314 | O50: =10^(6.5-0.76*N50) -> 9.776711867e-06 | P50: =IF(O50>1,1,O50) -> 9.776711867e-06 | Q50: =0.003*0.0000000005 -> 1.5e-12 | R50: 0.9992 | S50: =$S$5 -> 0.0031649784 | T50: 1.465333575e-17 | U50: 4.7474676e-15
A51: 25 | B51: LP header warm 6" NPS | C51: 10 | D51: (i) Small leak, 10mm2 | E51: 10 | F51: 300 | G51: 0.0155 | H51: 0.01973521294 | I51: =[1]!hecalc(3,0,1,((E51+14.7)*101325/14.7),2,F51,1)/16.0185 -> 0.01704245351 | J51: 15.4063374 | K51: 25.11104497 | L51: =IF(K51>'side work'!$I$11,'side work'!$I$11,K51) -> 25.11104497 | M51: =M48 -> 4000 | N51: 20.86898947 | O51: 4.360818438e-10 | P51: 4.360818438e-10 | Q51: 1.5e-08 | R51: 0.9992 | S51: 0.0031649784 | T51: 6.535994675e-17 | U51: 4.7474676e-10
C52: 10 | D52: (ii) Large leak, 1000mm2 | E52: 10 | F52: 300 | G52: 1.55 | H52: 1.973521294 | I52: =[1]!hecalc(3,0,1,((E52+14.7)*101325/14.7),2,F52,1)/16.0185 -> 0.01704245351 | J52: 1540.63374 | K52: 2511.104497 | L52: =IF(K52>'side work'!$I$11,'side work'!$I$11,K52) -> 1546.574237 | M52: 4000 | N52: 15.14448314 | O52: 9.776711867e-06 | P52: 9.776711867e-06 | Q52: 1.5e-09 | R52: 0.9992 | S52: 0.0031649784 | T52: 1.465333575e-13 | U52: 4.7474676e-11
C53: 10 | D53: (iii) Rupture | E53: 275 | F53: 300 | G53: 31.74 | H53: 40.41262315 | I53: =[1]!hecalc(3,0,1,((E53+14.7)*101325/14.7),2,F53,1)/16.0185 -> 0.1982313721 | J53: 564236.4135 | K53: 917158.1123 | L53: =IF(K53>'side work'!$I$11,'side work'!$I$11,K53) -> 1546.574237 | M53: 4000 | N53: 15.14448314 | O53: 9.776711867e-06 | P53: 9.776711867e-06 | Q53: 4.5e-10 | R53: 0.9992 | S53: 0.0031649784 | T53: 4.396000724e-14 | U53: 1.42424028e-11
A54: 26 | B54: Nitrogen header | C54: 13 | D54: (i) Small leak, 10mm2 | E54: 65 | F54: 300 | G54: 0.0155 | H54: =G54*4/PI() -> 0.01973521294 | I54: =[2]!Density("nitrogen","PT","E",((E54+14.7)*101325/14.7),F54) -> 89.38949979 | J54: =1891*H54*1*SQRT(E54*I54) -> 2844.67907 | K54: 2.828747923 | L54: =IF(K54>'side work'!$I$11,'side work'!$I$11,K54) -> 2.828747923 | M54: 4000 | N54: =0.21*M54*100/(M54+L54) -> 20.98515957 | O54: =10^(6.5-0.76*N54) -> 3.558596342e-10 | P54: =IF(O54>1,1,O54) -> 3.558596342e-10 | Q54: 1.5e-08 | R54: 0.9992 | S54: 0.0031649784 | T54: 6.933711457e-17 | U54: 6.17170788e-10
C55: 13 | D55: (ii) Rupture | E55: 65 | F55: 300 | G55: 0.3568 | H55: =G55*4/PI() -> 0.4542918696 | I55: =[2]!Density("nitrogen","PT","E",((E55+14.7)*101325/14.7),F55) -> 89.38949979 | J55: 65482.67693 | K55: 65.11595218 | L55: =IF(K55>'side work'!$I$11,'side work'!$I$11,K55) -> 65.11595218 | M55: 4000 | N55: 20.66361722 | O55: 6.246703765e-10 | P55: 6.246703765e-10 | Q55: 4.5e-10 | R55: 0.9992 | S55: 0.0031649784 | T55: 3.651398245e-18 | U55: 1.851512364e-11
C56: 6 | D56: (iii) manual valve external leak | E56: 65 | F56: 300 | G56: =G54 -> 0.0155 | H56: =G56*4/PI() -> 0.01973521294 | I56: =[2]!Density("nitrogen","PT","E",((E56+14.7)*101325/14.7),F56) -> 89.38949979 | J56: =1891*H56*1*SQRT(E56*I56) -> 2844.67907 | K56: 2.828747923 | L56: =IF(K56>'side work'!$I$11,'side work'!$I$11,K56) -> 2.828747923 | M56: 4000 | N56: =0.21*M56*100/(M56+L56) -> 20.98515957 | O56: =10^(6.5-0.76*N56) -> 3.558596342e-10 | P56: =IF(O56>1,1,O56) -> 3.558596342e-10 | Q56: 4.5e-10 | R56: 0.9992 | S56: 0.0031649784 | T56: 9.600523556e-19 | U56: 8.54544168e-12
C57: 6 | D57: (iv) Manual valve rupture | E57: 65 | F57: 300 | G57: =0.5^2*PI()*0.25 -> 0.1963495408 | H57: 0.25 | I57: =[2]!Density("nitrogen","PT","E",((E57+14.7)*101325/14.7),F57) -> 89.38949979 | J57: 36035.57609 | K57: 35.83376489 | L57: =IF(K57>'side work'!$I$11,'side work'!$I$11,K57) -> 35.83376489 | M57: 4000 | N57: 20.8135431 | O57: 4.805153281e-10 | P57: 4.805153281e-10 | Q57: 4.5e-10 | R57: 0.9992 | S57: 0.0031649784 | T57: 1.296353473e-18 | U57: 8.54544168e-12
R61: sum column | T61: =SUM(T5:T57) -> 1.919324629e-08 | U61: =SUM(U5:U57) -> 6.253624747e-06
R62: Total result | T62: =SUM(T61:U61) -> 6.272817993e-06
R63: ODH Class | T63: =IF(T62<=0.0000001,0,IF(T62<=0.00001,1,IF(T62<=0.001,2,"Error"))) -> 1

Sheet side work
A1: HWR Rupture disk flow analysis | AE1: 30 | AF1: psi
A2: Vcave | B2: 590 | C2: m3 | D2: Volume of the cave | E2: 30 | F2: psia | I2: Max flow from compressors | V2: M-dot | W2: 25 | X2: g/s | Y2: total flow | AE2: =AE1*6894.76 -> 206842.8 | AF2: Pa | AO2: 3/4" | AV2: 1/2" | BB2: 4"
B3: =B2*35.3147 -> 20835.673 | C3: ft3 | E3: =E2*6894.76 -> 206842.8 | F3: Pa | H3: m-dot | I3: 60 | J3: g/s | K3: max compressor flow | V3: M-dot | W3: =W2*0.132277 -> 3.306925 | X3: lbm/min | Y3: total flow | AE3: 5 | AF3: K | AO3: P | AP3: ='Component calculations'!E11+15 -> 177 | AQ3: psi | AV3: P | AW3: ='Component calculations'!E7+15 -> 290 | AX3: psi | BB3: P | BC3: ='Component calculations'!E22+15 -> 55 | BD3: psi
A4: Vstore | B4: 478 | C4: L | D4: LHe in HWR | E4: 5 | F4: K | I4: 2 | J4: # of compress | V4: P | W4: 100 | X4: psia | Y4: flow pressure | AO4: T | AP4: ='Component calculations'!F11*(9/5) -> 72 | AQ4: R | AV4: T | AW4: ='Component calculations'!F7*9/5 -> 9 | AX4: R | BB4: T | BC4: ='Component calculations'!F22*9/5 -> 9 | BD4: R
B5: =B4*0.001 -> 0.478 | C5: m3 | H5: M-dot | I5: =I4*I3 -> 120 | J5: g/s | K5: total flow | V5: T | W5: 9 | X5: R | Y5: flow temp | AO5: rho | AP5: =[1]!hecalc(3,0,1,AP3,2,AP4,4) -> 0.8880556063 | AQ5: lbm/ft3 | AV5: rho | AW5: =[1]!hecalc(3,0,1,AW3,2,AW4,4) -> 9.917823573 | AX5: lbm/ft3 | BB5: rho | BC5: =[1]!hecalc(3,0,1,BC3,2,BC4,4) -> 7.682991491 | BD5: lbm/ft3
B6: =B5*35.3147 -> 16.8804266 | C6: ft3 | H6: M-dot | I6: =I5*0.132277 -> 15.87324 | J6: lbm/min | K6: total flow | V6: rho | W6: =[1]!hecalc(3,0,1,W4,2,W5,4) -> 8.463871983 | X6: lbm/ft3 | Y6: density | AO6: 1.05 | AP6: in | AQ6: OD | AV6: 0.84 | AW6: in | AX6: OD | BB6: 0.84 | BC6: in | BD6: OD
A7: Vevent | B7: 6.5 | C7: kg/s | D7: Mass flow rate | H7: P | I7: 300 | J7: psia | K7: flow pressure | V7: Vdot | W7: =W3/W6 -> 0.390710659 | X7: cfm | AO7: 0.083 | AP7: in | AQ7: t | AV7: 0.083 | AW7: in | AX7: t | BB7: 0.083 | BC7: in | BD7: t
B8: =B7*132.277 -> 859.8005 | C8: lbm/min | H8: T | I8: 540 | J8: R | K8: flow temp | V8: V'dot | W8: =W7*(W4/15)*(540/W5) -> 156.2842636 | X8: scfm | AO8: =AO6-(2*AO7) -> 0.884 | AP8: in | AQ8: ID | AV8: =AV6-(2*AV7) -> 0.674 | AW8: in | AX8: ID | BB8: =BB6-(2*BB7) -> 0.674 | BC8: in | BD8: ID
A9: flow density | B9: =[1]!hecalc(3,0,1,E3,2,E4,1) -> 104.8394345 | C9: kg/m3 | H9: rho | I9: =[1]!hecalc(3,0,1,I7,2,I8,4) -> 0.2052696808 | J9: lbm/ft3 | K9: density | AO9: 100 | AP9: ft | AQ9: L | AV9: =AO9 -> 100 | AW9: ft | AX9: L | BB9: =AO9 -> 100 | BC9: ft | BD9: L
B10: =B9*0.062428 -> 6.544916217 | C10: lbm/ft3 | H10: Vdot | I10: =I6/I9 -> 77.32871185 | J10: cfm | V10: 40K | AN10: V | AO10: =PI()*(AO8/12)^2*0.25*AO9*2 -> 0.85243626 | AP10: ft3 | AQ10: V*2 for both runs | AU10: V | AV10: =PI()*(AV8/12)^2*0.25*AV9*2 -> 0.4955382445 | AW10: ft3 | AX10: V*2 for both runs | BA10: V | BB10: =PI()*(BB8/12)^2*0.25*BB9*2 -> 0.4955382445 | BC10: ft3 | BD10: V*2 for both runs
H11: V'dot | I11: =I10*(I7/15)*(540/I8) -> 1546.574237 | J11: scfm | V11: M-dot | W11: 100 | X11: g/s | Y11: total flow | AN11: t | AO11: =AO10/('Component calculations'!J16/AP5) -> 3.629310715e-05 | AP11: hr | AU11: t | AV11: =AV10/('Component calculations'!J7/AW5) -> 0.0001095560108 | AW11: hr | BA11: t | BB11: =BB10/('Component calculations'!J22/BC5) -> 6.333186115e-06 | BC11: hr
A12: R | B12: =B7/B9 -> 0.06199957136 | C12: m3/s | D12: Volumetric flow rate | V12: M-dot | W12: =W11*0.132277 -> 13.2277 | X12: lbm/min | Y12: total flow | AN12: t | AO12: =AO11*3600 -> 0.1306551857 | AP12: seconds | AU12: t | AV12: =AV11*3600 -> 0.3944016389 | AW12: seconds | BA12: t | BB12: =BB11*3600 -> 0.02279947001 | BC12: seconds
B13: =B12*35.3147*60 -> 131.3697758 | C13: cfm | V13: P | W13: 200 | X13: psia | Y13: flow pressure
A14: R' | B14: =B13*((E2/15))*(300/E4) -> 15764.37309 | C14: scfm | V14: T | W14: 72 | X14: R | Y14: flow temp | AN14: C(t) | AO14: =(0.21/(B15+'Component calculations'!K13))*(B15+'Component calculations'!K13*EXP(-((B15+'Component calculations'!K19)/B3)*(AO12/60))) -> 0.2094658531 | AU14: C(t) | AV14: =(0.21/($B$15+'Component calculations'!K7))*($B$15+'Component calculations'!K7*EXP(-(($B$15+'Component calculations'!K7)/$B$3)*(AV12/60))) -> 0.2042880635 | BA14: C(t) | BB14: =(0.21/($B$15+'Component calculations'!K22))*($B$15+'Component calculations'!K22*EXP(-(($B$15+'Component calculations'!K22)/$B$3)*(BB12/60))) -> 0.2089029871
A15: Q | B15: 4000 | C15: cfm | D15: Ventilation Vdot | V15: rho | W15: =[1]!hecalc(3,0,1,W13,2,W14,4) -> 0.9992625229 | X15: lbm/ft3 | Y15: density | AO15: =AO14*100 -> 20.94658531 | AV15: =AV14*100 -> 20.42880635 | BB15: =BB14*100 -> 20.89029871
A16: t | B16: =B5/B12 -> 7.709730721 | C16: sec | D16: time to empty HWR | V16: Vdot | W16: =W12/W15 -> 13.23746233 | X16: cfm
A17: C(t) | B17: =(0.21/($B$15+B14))*($B$15+B14*EXP(-(($B$15+B14)/$B$3)*(B16/60))) -> 0.1907789353 | V17: V'dot | W17: =W16*(W13/15)*(540/W14) -> 1323.746233 | X17: scfm
B18: =B17*100 -> 19.07789353 | C18: % | D18: FESHM4240 Case A

Sheet Prob.
A1: po
D4: Ventilation Probability | F4: Sources
D5: Ppower [1/hr] | E5: 0.0003 | F5: FESHM4240TA, Table 1
D6: Pgenerator [1/hr] | E6: 0.03 | F6: FESHM4240TA, Table 1: Electrical Power Failure- Demand rate
D7: λfan [1/hr] | E7: 9e-06 | F7: FESHM4240TA, Table 2
D8: PODH | E8: 0.0024
D9: Tp [hr] | E9: =7*24 -> 168 | F9: Test period: 1 week
D10: P1o1 [-] | E10: =0.5*E7*E9 -> 0.000756 | F10: 0.5*Tp*λfan: FESHM4240TA page 44
D11: Prelay [-] | E11: 0.0001
D12: Pno,vent [-] | E12: =(E5*E6)+(1-E5*E6)*E8+E10 -> 0.0031649784
D13: Pvent [-] | E13: =1-E12 -> 0.9968350216
D14: Pno_monitor [-] | E14: =(E8+(1-E8)*E10)*E11 -> 3.1541856e-07

Sheet Changes
A2: # | B2: Change | E2: Comment
A3: 1 | B3: U-tube change probability | E3: change was calculated as a daily change. (Pi/24 hrs). At best this will be a weekly event (Pi/168 hrs)
A4: 2 | B4: Cold trapped volume removal | E4: Removed cold trapped volume rates. When valve is opened it is a neglibible abount of helium.
A5: 3 | B5: Safety valve prematuely open | E5: Removed, Safetly valves will not be open inside th cave. Rupture of valves mantained.
